Cogmind - Beta 13 @@@ ROGUE MODE // 2024.03.30 @ 16:45:03 Player: firstiteration Result: Destroyed by Y-45 Defender with Beam Rifle Performance ------------- Evolutions (1) 500 Regions Visited (2) 400 Robots Destroyed (23) 115 Value Destroyed (461) 461 Prototype IDs (0) 0 Alien Tech Used (0) 0 Bonus (0) 0 TOTAL SCORE: 1476 Bonus ------- None Cogmind --------- Core Integrity 0/400 Matter 370/400 Energy 125/125 System Corruption 0% Temperature Cool (18) Movement Walking (120) Location -9/Materials Parts ------- > --- POWER (2) -------- Light Ion Engine > --- PROPULSION (2) --- Aluminum Leg Aluminum Leg > --- UTILITY (3) ------ Medium Matter Pod Signal Interpreter > --- WEAPON (2) ------- (None) > --- INVENTORY (5) ---- (None) Peak State ------------ > --- POWER ------------ Light Ion Engine Light Ion Engine > --- PROPULSION ------- Light Treads > --- UTILITY ---------- Medium Matter Pod Sensor Array Signal Interpreter > --- WEAPON ----------- Light Assault Rifle Welding Torch > --- INVENTORY -------- Light Ion Engine [Rating: 8] Favorites ----------- Power Light Ion Engine Engine Light Ion Engine Propulsion Aluminum Leg Treads Light Treads Leg Aluminum Leg Utility Sensor Array Device Sensor Array Storage Small Storage Unit Processor Signal Interpreter Weapon Light Assault Rifle Energy Gun Small Laser Energy Cannon Beam Cannon Ballistic Gun Light Assault Rifle Launcher Grenade Launcher Special Weapon Welding Torch Build | -11 -10 -9 ------- Run | Yrd Mat Mat Slots Evolved 2 | . . 2 Power 1 | . . 1 Propulsion . | . . . Utility 1 | . . 1 Weapon . | . . . Parts Attached 39 | 9 17 13 Power 8 | 1 2 5 Engine 8 | 1 2 5 Core . | . . . Reactor . | . . . Propulsion 11 | 4 4 3 Treads 2 | . 2 . Leg 9 | 4 2 3 Wheel . | . . . Hover . | . . . Flight . | . . . Utility 10 | 2 7 1 Device 5 | 2 3 . Storage 4 | . 3 1 Processor 1 | . 1 . Hackware . | . . . Protection . | . . . Artifact . | . . . Weapon 10 | 2 4 4 Energy Gun 1 | . . 1 Energy Cannon 1 | . 1 . Ballistic Gun 6 | 2 2 2 Ballistic Cannon . | . . . Launcher 1 | . 1 . Special Weapon 1 | . . 1 Impact Weapon . | . . . Slashing Weapon . | . . . Piercing Weapon . | . . . Special Melee Weapon . | . . . Unidentified Prototypes . | . . . Parts Lost 10 | . 1 9 Power 3 | . . 3 Propulsion 1 | . . 1 Utility 1 | . . 1 Weapon 5 | . 1 4 Highest Loss Streak 7 | . 1 7 To Critical Strikes 1 | . . 1 Average Slot Usage (%) 85 | . 92 64 Engine 14 | . 14 16 Treads 3 | . 3 5 Leg 17 | . 21 5 Device 12 | . 15 2 Storage 8 | . 8 10 Processor 3 | . 1 11 Energy Gun 1 | . . 4 Energy Cannon 4 | . 5 . Ballistic Gun 13 | . 15 6 Launcher 4 | . 5 . Naked Turns . | . . . Heaviest Build 17 | 6 17 11 Greatest Support 20 | 20 20 20 Greatest Overweight (x) . | . . . Average Overweight (x) . | . . . Largest Inventory Capacity 25 | 5 25 5 Average Capacity 6 | 5 6 5 Most Carried 8 | 2 8 5 Average Carried 3 | . 4 1 Final Capacity 5 | 5 5 5 Final Carried 5 | 1 5 . Class Distribution -------------------- 94% | Mutant 5% | Scavenger-Mutant Dominant Class ---------------- Mutant | -10/Materials Mutant | -9/Materials Resources | -11 -10 -9 ----------- Run | Yrd Mat Mat Matter Collected 750 | 260 284 206 Remotely . | . . . Salvage Created 530 | 30 281 219 Parts 50 | 2 28 20 Haulers Intercepted . | . . . Recyclers Shooed . | . . . Parts Field Recycled . | . . . Retrieved Matter . | . . . Parts Self-Destructed . | . . . Prevented . | . . . Kills | -11 -10 -9 ------- Run | Yrd Mat Mat Combat Hostiles Destroyed 18 | 1 9 8 Guns 13 | 1 4 8 Cannons 4 | . 4 . AOE 1 | . 1 . Classes Destroyed 6 | 1 4 1 Worker 1 | . 1 . Operator 1 | . 1 . Watcher 3 | . 3 . Swarmer 10 | . 6 4 Grunt 7 | 1 3 3 Sentry 1 | . . 1 Best Kill Streak 4 | 1 4 3 Combat Bots Only 3 | 1 3 3 Max Kills in Single Turn 2 | 1 2 1 Gunslinging . | . . . Exploded 1 | . 1 . Melee . | . . . Uniques/NPCs Destroyed . | . . . Combat | -11 -10 -9 -------- Run | Yrd Mat Mat Hostile Shots Fired 274 | 7 118 149 Missed 92 | 2 34 56 Damage Taken 1907 | 55 805 1047 Core 608 | 11 186 411 Absorbed by Shields . | . . . Core Remaining (%) 58 | 95 21 . Volleys Fired 100 | 5 57 38 Largest 2 | 2 2 2 Hottest 90 | 40 90 60 Shots Fired 147 | 10 93 44 Gun 107 | 10 58 39 Cannon 31 | . 31 . Launcher 4 | . 4 . Special 5 | . . 5 Kinetic 88 | 10 58 20 Thermal 55 | . 31 24 Explosive 4 | . 4 . Electromagnetic . | . . . Robot Hit Streak 9 | 2 9 7 Robot Miss Streak 5 | 2 5 2 Penetration Max . | . . . Secondary Targets 1 | . . 1 Max Gunslinging Chain 1 | . . 1 Shots Hit Robots 82 | 6 46 30 Core Hits 38 | 3 22 13 Critical Kills . | . . . Critical Parts Destroyed . | . . . Critical Strikes . | . . . Melee Attacks . | . . . Impact . | . . . Slashing . | . . . Piercing . | . . . Sneak Attacks . | . . . Combat Hostiles . | . . . Follow-up Attacks . | . . . Damage Inflicted 901 | 56 568 277 Guns 621 | 56 301 264 Cannons 224 | . 224 . Explosions 43 | . 43 . Melee . | . . . Ramming . | . . . Kinetic 471 | 56 301 114 Thermal 387 | . 224 163 Explosive 43 | . 43 . Electromagnetic . | . . . Impact . | . . . Slashing . | . . . Piercing . | . . . Highest Corruption . | . . . Average Corruption . | . . . Corruption Purged . | . . . Corruption Blocked . | . . . Overload Shots . | . . . Overflow Damage . | . . . Projectiles . | . . . Explosions . | . . . Melee . | . . . Knockbacks . | . . . Impact . | . . . Kinetic . | . . . Secondary . | . . . Self-Inflicted Damage . | . . . Shots . | . . . Rammed . | . . . Targets Rammed . | . . . Kicked . | . . . Crushed . | . . . Highest Temperature 198 | 6 198 38 Average Temperature 60 | 6 79 12 Received Heat Transfer 588 | 30 192 366 Siege Activations . | . . . Robots Corrupted . | . . . Combat Hostiles . | . . . Parts Fried . | . . . Impact Corruptions . | . . . Robots Melted . | . . . Combat Hostiles . | . . . Parts Melted . | . . . Heat Transferred 906 | . 481 425 Parts Sabotaged . | . . . Parts Stolen . | . . . Parts Stripped . | . . . Power Chain Reactions . | . . . Alert | -11 -10 -9 ------- Run | Yrd Mat Mat Peak Influence 253 | 20 229 253 Initial 63 | . 13 63 Average 91 | 6 91 150 Maximum Alert Level 1 | . 1 1 Low Security (%) 93 | 100 97 75 Level 1 6 | . 2 24 Level 2 . | . . . Level 3 . | . . . Level 4 . | . . . Level 5 . | . . . High Security . | . . . Max Security . | . . . Squads Dispatched 4 | . 2 2 Investigation . | . . . Extermination . | . . . Reinforcement 4 | . 2 2 Assault . | . . . Garrison . | . . . Intercept . | . . . Searches Triggered . | . . . Construction Impeded . | . . . Haulers Reinforced . | . . . Active Scanning Responses . | . . . Cargo Convoy Interrupts . | . . . Stealth | -11 -10 -9 --------- Run | Yrd Mat Mat Distress Signals 2 | . 1 1 Communications Jammed . | . . . Distress Signals . | . . . Times Spotted 38 | 1 18 19 Peak Tracking Total 14 | 1 5 14 Tactical Retreats 4 | . . 4 Traps | -11 -10 -9 ------- Run | Yrd Mat Mat Traps Triggered 1 | . 1 . Indirectly . | . . . Trap Hack Attempts . | . . . Triggered . | . . . Disarmed . | . . . Reprogrammed . | . . . Reused . | . . . Traps Extracted . | . . . Installed . | . . . Triggered . | . . . Machines | -11 -10 -9 ---------- Run | Yrd Mat Mat Machines Disabled . | . . . Max in Single Turn . | . . . Machines Repaired . | . . . Machines Dismantled . | . . . Machines Sabotaged . | . . . Overloaded Fab Kills . | . . . Hacking | -11 -10 -9 --------- Run | Yrd Mat Mat Machines Accessed 4 | . 3 1 Terminals 1 | . 1 . Fabricators . | . . . Repair Stations 1 | . 1 . Recycling Units 2 | . 1 1 Scanalyzers . | . . . Garrison Access . | . . . Total Hacks 12 | . 7 5 Successful 7 | . 4 3 Failed 5 | . 3 2 Catastrophic . | . . . Database Lockouts . | . . . Manual 1 | . 1 . Terminals 3 | . 3 . Fabricators . | . . . Repair Stations 1 | . 1 . Recycling Units 8 | . 3 5 Scanalyzers . | . . . Garrison Access . | . . . Terminal Hacks 2 | . 2 . Record 2 | . 2 . Fabricator Hacks . | . . . Repair Station Hacks . | . . . Recycling Unit Hacks 5 | . 2 3 Recycle Component 2 | . 2 . Process 1 | . . 1 Report Inventory 1 | . . 1 Retrieve Matter 1 | . . 1 Scanalyzer . | . . . Garrison Access Hacks . | . . . Unauthorized Hacks . | . . . Terminals . | . . . Fabricators . | . . . Repair Stations . | . . . Recycling Units . | . . . Scanalyzers . | . . . Garrison Access . | . . . Data Cores Recovered . | . . . Used . | . . . Hacking Detections 2 | . 2 . Full Trace Events 1 | . 1 . Feedback Events . | . . . Feedback Blocked . | . . . Robot Schematics Acquired . | . . . Robots Built . | . . . Authchips . | . . . Time . | . . . Total Robot Build Rating . | . . . Part Schematics Acquired . | . . . Parts Built . | . . . Authchips . | . . . Time . | . . . Total Part Build Rating . | . . . Parts Repaired . | . . . Time . | . . . Parts Recycled 2 | . 2 . Recycled Matter 19 | . . 19 Retrieved Matter 19 | . . 19 Retrieved Components . | . . . Parts Scanalyzed . | . . . Part Schematics Acquired . | . . . Parts Damaged . | . . . Bothacking | -11 -10 -9 ------------ Run | Yrd Mat Mat Used RIF Installer . | . . . Robots Hacked . | . . . Non-combat . | . . . Combat . | . . . Robot Hacks Applied . | . . . Relay Couplers Released . | . . . Fabnet Peak Effective % . | . . . Robots Rewired . | . . . Allies Hacked . | . . . Hacks Repelled . | . . . Allies | -11 -10 -9 -------- Run | Yrd Mat Mat Total Allies . | . . . Largest Group . | . . . Highest-Rated Group . | . . . Highest-Rated Ally . | . . . Total Orders . | . . . Ally Attacks . | . . . Total Damage . | . . . Kills . | . . . Allies Corrupted . | . . . Allies Melted . | . . . Intel | -11 -10 -9 ------- Run | Yrd Mat Mat Robot Analysis Total . | . . . Derelict Logs Recovered . | . . . Drone Launches . | . . . Drone Recoveries . | . . . Exploration | -11 -10 -9 ------------- Run | Yrd Mat Mat Turns Passed 1153 | 162 756 235 Spaces Moved 618 | 108 418 92 Core 26 | 19 . 7 Treads 143 | . 95 48 Legs 449 | 89 323 37 Wheels . | . . . Hover . | . . . Flight . | . . . Fastest Speed 50 | 50 120 50 Average Speed 126 | 107 129 135 Slowest Speed 160 | 120 160 160 Overloaded Moves . | . . . Propulsion Burnouts . | . . . Robots Hopped . | . . . Cave-ins Triggered . | . . . Exploration Rate (%) 25 | 9 52 15 Regions Visited 2 Branch Regions . Pre-discovered Areas . | . . . Known Exits Taken 1 | . 1 . Unknown Exits Taken 1 | 1 . . Scrap Searched . | . . . Spaces Dug . | . . . Terrain Destroyed 30 | . 30 . Melee . | . . . Projectile . | . . . AOE 30 | . 30 . Terrain Rammed . | . . . Walls Destroyed . | . . . Machines Disabled . | . . . Actions | -11 -10 -9 --------- Run | Yrd Mat Mat Total 862 | 145 555 162 Wait 48 | 16 21 11 Move 616 | 107 417 92 Hop . | . . . Pick Up 38 | 7 25 6 Fast Attach . | . . . Attach 23 | 7 5 11 Detach 1 | 1 . . Swap 16 | 2 12 2 Drop 20 | . 18 2 Fire 100 | 5 57 38 Melee . | . . . Ram . | . . . Kick . | . . . Crush . | . . . Escape Stasis . | . . . Rewire . | . . . Trap . | . . . Miscellaneous . | . . . Route ------- -11/Scrapyard -10/Materials (discovered 3 exits: *Mat / [*Min x2]) -9/Materials History --------- Turn | Location | Event 2 | -11/Scrapyard | Met Revision 17 84 | -11/Scrapyard | Discovered new exit (range 8) 163 | -11/Scrapyard | Entered Materials 163 | -10/Materials | Discovered new exit (range 8) 363 | -10/Materials | Build established: Mutant 649 | -10/Materials | Discovered new exit (range 8) 728 | -10/Materials | Core integrity fell below 50% 800 | -10/Materials | Discovered new exit (range 5) 916 | -10/Materials | Identified exit to Materials 919 | -10/Materials | Entered another Materials area 919 | -9/Materials | Evolved 2 slots: Power x1, Utility x1 1094 | -9/Materials | Core integrity fell below 50% 1131 | -9/Materials | Core integrity fell below 20% 1154 | -9/Materials | Destroyed by Y-45 Defender with Beam Rifle Last Messages --------------- U-05 Engineer destroyed. K-01 Serf collects debris. Aluminum Leg destroyed. S-10 Pest destroyed. G-34 Mercenary destroyed. Lgt. Assault Rifle destroyed. K-01 Serf collects debris. Acquired Aluminum Leg. Acquired 6 matter. K-01 Serf collects debris. Acquired Aluminum Leg. K-01 Serf collects debris. Sml. Laser destroyed. K-01 Serf cleans the Nuclear Reactor. K-01 Serf collects debris. Lgt. Ion Engine destroyed. K-01 Serf collects debris. G-34 Mercenary suffers critical hit (Burn). K-01 Serf collects debris. [Achievement: First Step to Greatness] Map ----- +----------------------------------------------------+ | | | ???????????????????????????????????????????????? | | ???????????????????????????????????????????????? | | ???????????????????????????????????????????????? | | ???????????????????????????????????????????????? | | ???????????????????????????????????????????????? | | ???????????????????????????????????????????????? | | ???????????????????????????????????????????????? | | ???????????????????????????????????????????????? | | ???????????????????????????????????????????????? | | ???????????????????????????????????????????????? | | ???????????????????????????????????????????????? | | ??????????????????????????????????????????????## | | ?????????????????????????????????????????###### | | ?????????????????????????????????????????# # | | ?????????????????????????????????????????# * # | | ????????????# ??????????????????????????# # | | ????????????# ??????????????????????????# + | | ????????????# ?????????????????????????# #" | | ???????????## #????????????????????????# #" | | ???????????# ##+###??????????????????# #" | | ???????????? #??????????????????# # | | ????????????? ##########?????????# ## | | ???????????# "" # #?????????# #? | | ???????????# "Y # #?????????# #? | | ???????????# "" #@ k ########### #? | | ???????????# #Ygg # # #? | | ???????????# /gY # """ """ # ## | | ???????????# # # """ """ # # | | ???????????# """ #k # """ """ # | | ???????????# """ # # !%!/ | | ???????????# """ # # # | | ???????????+ ##########[= #% | | ???????????# % [=/%* # | | ???????????# ###+#####################!! | | ???????????######?? ????????????????????#!! | | ??????????????????? ????????????????????#!= | | ?????????????????? ????????????????????#%!! | | ?????????????????? ????????????????????#=[ | | ?????????????????# ????????????????????# | | ?????????????????# ????????????????????# | | ?????????????????# ????????????????????# """ | | ?????????????????# ?????????????????????# """ | | ?????????????????###?????????????????????? """ | | ?????????????????????????????????????????? ??? | | ?????????????????????????????????????????? ??? | | ?????????????????????????????????????????? "??? | | ?????????????????????????????????????????? "??? | | ?????????????????????????????????????????? ???? | | ???????????????????????????????????????????????? | +----------------------------------------------------+ Best States ------------- Heat Dissipation 35 Energy Generation 15 Energy Capacity 275 Matter Stores 400 Matter Capacity 400 Sight Range 16 Robot Scan Range 14 Terrain Scan Density 10 Evasion (%) 55 Recoil Reduction 1 Item Schematics ----------------- None Robot Schematics ------------------ None Fabricated ------------ Nothing Alien Tech Used ----------------- None Achievements -------------- First Step to Greatness Storm Trooper Uninvited Guest Challenges ------------ None Game ------ Seed ProjectionEnergyWarhead Manual? 0 Play Time 00:37:39 Cumulative 0.5 hours Start 2024.03.30 @ 16:05:09 End 2024.03.30 @ 16:45:03 Sessions 1 Manual Loads 0 Difficulty Rogue Special Mode None Game No. 1 Rogue 1 Adventurer 0 Explorer 0 Win Type - Total 0 Types 0/0/0/0/0/0/0/0/0 Lore% 0 Gallery% 1 Achievement% 1 Wizard Run 0 Options --------- Layout 1 ASCII 0 Keyboard 0 Movement Mouse Keybinds 0 Fullscreen 1 Font 24/Smallcaps Map View 50x35 Zoom Use 0% Tactical HUD 0 Map Filters NONE Filters NONE Steam 1 RUN: 324e5f72-66ff-4471-817e-d6efac1343ab